bitfinex/quotes_ETHUSD_20220215
["timestamp","ask_amount","ask_price","bid_price","bid_amount"]
[1644950868865,0.98005089,3118.0,3117.6,1.09954987]
[1644950869063,0.98005089,3118.0,3117.7,1.09679884]
[1644950869263,0.98005089,3118.0,3117.8,1.09679884]
[1644950869472,0.24712918,3117.9,3117.6,0.00275103]
[1644950869863,0.98005089,3118.0,3117.5,1.09730745]
[1644950870064,0.24715345,3117.9,3117.6,0.80475959]
[1644950870262,0.24715345,3117.9,3117.7,1.09730745]
[1644950870862,0.98005089,3118.0,3117.7,1.09730745]
[1644950872065,0.98005089,3118.0,3117.8,1.09730745]
[1644950872265,0.98005089,3118.0,3117.9,1.09730745]
[1644950872465,0.98005089,3118.0,3117.7,0.00290953]
[1644950872466,1.22738912,3118.0,3117.7,0.00290953]
[1644950872710,0.98005089,3118.0,3117.7,0.00290953]
[1644950873111,0.24748174,3117.9,3117.7,0.00290953]
[1644950873512,0.24748174,3117.9,3117.5,1.09730745]
[1644950873710,0.24748174,3117.9,3117.6,0.00290956]
[1644950874714,0.24748174,3117.9,3117.6,1.09730745]
[1644950874916,0.24748174,3117.9,3117.6,0.00290959]
[1644950875312,1.04947174,3117.9,3117.6,0.00290959]
[1644950875513,0.24748174,3117.8,3117.6,0.00185038]
[1644950875913,0.24748174,3117.8,3117.2,1.09931997]
[1644950876115,0.24748174,3117.8,3117.3,1.09931997]
[1644950876116,1.14649595,3117.4,3117.3,1.09931997]
[1644950876364,0.24748174,3117.4,3117.3,1.09931997]
[1644950876569,0.24748174,3117.8,3117.3,1.09931997]
[1644950876767,0.24748174,3117.8,3117.4,1.90120997]
[1644950876963,0.24748174,3117.8,3117.5,1.09931997]
[1644950877362,1.08978027,3117.7,3117.5,1.09931997]
[1644950877564,0.24748174,3117.6,3117.5,1.09931997]
[1644950877970,0.24748174,3117.6,3117.3,1.09931997]
[1644950878163,0.24748174,3117.6,3117.4,1.10003453]
[1644950878362,0.24748174,3117.6,3116.8,0.0046681]
[1644950878565,3.45592554,3117.6,3117.4,0.00290972]
[1644950878862,1.24748174,3117.5,3117.4,0.00290972]
[1644950879064,1.54748174,3117.5,3117.4,0.00290972]
[1644950879365,1.54748174,3117.5,3117.2,1.10014544]
[1644950879562,0.24748174,3117.4,3117.3,1.10014544]
[1644950879763,1.04961244,3117.4,3117.3,1.10305523]
[1644950879963,0.8021307,3117.4,3117.3,0.00290979]
[1644950880215,1.35013861,3117.4,3117.3,0.00290979]
[1644950880615,1.35013861,3117.4,3117.0,0.0046681]
[1644950880616,1.6725357,3117.3,3117.0,0.0046681]
[1644950880815,0.24800791,3117.2,3117.1,1.10003377]
[1644950881316,1.05015221,3117.2,3116.8,1.10003377]
[1644950881516,0.24800791,3117.1,3116.9,0.0046681]
[1644950881715,0.24800791,3117.1,3117.0,1.10003377]
[1644950882115,0.24800791,3117.1,3116.8,0.00291008]
[1644950882717,0.24800791,3117.1,3116.8,1.10294385]
[1644950882916,1.05016791,3117.1,3116.9,1.10003377]
[1644950883116,0.80216,3117.1,3116.9,1.10003377]
[1644950883316,1.9043043,3117.2,3116.9,1.10003377]
[1644950883317,0.3,3117.2,3116.9,1.10003377]
[1644950883516,0.3,3117.2,3117.0,0.0046681]
[1644950883517,0.24802079,3117.1,3117.0,0.0046681]
[1644950883718,0.24802079,3117.1,3117.0,1.10470187]
[1644950883965,0.24802079,3117.1,3117.0,1.10003377]
[1644950884166,0.24802079,3117.1,3116.7,1.10470187]
[1644950884366,0.3,3117.2,3116.8,1.10470187]
[1644950884572,0.24800589,3117.1,3116.9,1.10294382]
[1644950884768,0.24800589,3117.1,3117.0,0.0046681]
[1644950884967,0.24800589,3117.1,3117.0,1.10470187]
[1644950885170,4.99788493,3117.7,3117.0,4.36093344]
[1644950885171,4.3011,3117.7,3117.0,4.36093344]
[1644950885368,0.24792127,3117.5,3117.1,1.10003377]
[1644950885968,0.24792127,3117.5,3117.1,1.90198377]
[1644950886168,2.8724,3117.6,3117.2,1.10003377]
[1644950886369,0.24800623,3117.5,3117.2,1.10003377]
[1644950886970,0.24800623,3117.5,3117.3,1.10003377]
[1644950888013,0.24800623,3117.5,3117.4,1.10003377]
[1644950888413,0.24800623,3117.5,3117.3,1.10003377]
[1644950888613,0.24800623,3117.5,3117.2,0.00290982]
[1644950888614,0.24800623,3117.5,3117.4,1.10003377]
[1644950889014,0.24800623,3117.8,3117.3,1.10003377]
[1644950889215,0.24800623,3117.8,3117.4,1.10003377]
[1644950889414,0.24800623,3117.8,3117.5,1.10003377]
[1644950889615,0.24800623,3117.8,3117.6,1.10003377]
[1644950889818,1.85197323,3117.8,3117.7,1.10003377]
[1644950890015,1.85197323,3117.8,3117.4,1.10003377]
[1644950890215,0.24800623,3117.7,3117.4,1.10003377]
[1644950890417,0.24800623,3117.7,3117.5,1.10003377]
[1644950890615,0.24800623,3117.7,3117.6,1.10294336]
[1644950891016,2.65400193,3117.7,3117.6,1.10294336]
[1644950891469,1.85200193,3117.7,3117.6,1.10003377]
[1644950891662,1.05000623,3117.7,3117.6,1.10003377]
[1644950892467,0.24800623,3117.7,3117.6,1.10003377]
[1644950892664,0.24800623,3117.7,3117.6,4.57046012]
[1644950892864,0.24800623,3118.0,3117.6,4.57046012]
[1644950893065,2.7072,3118.2,3117.7,1.10003377]
[1644950893066,0.24793238,3117.9,3117.7,1.10003377]
[1644950893265,0.24793238,3117.8,3117.5,0.00290966]
[1644950893463,2.7072,3118.2,3117.5,0.00290966]
[1644950893665,0.24792701,3118.1,3117.6,2.40545]
[1644950893864,7.3678,3118.4,3117.6,2.40545]
[1644950893865,0.24792701,3118.0,3117.7,1.09826718]
[1644950894065,3.51541665,3118.8,3117.7,4.65858243]
[1644950894264,0.00288624,3118.6,3117.8,1.09826718]
[1644950894464,0.00288624,3118.6,3117.9,3.3452711]
[1644950894664,0.00288624,3118.6,3118.0,2.70164718]
[1644950894864,0.00288624,3118.6,3118.1,1.09826718]
[1644950895117,0.24784444,3118.6,3118.1,1.09826718]
[1644950895316,0.2507311,3118.6,3118.1,5.19656734]
[1644950895515,0.2507311,3118.6,3118.2,1.09826718]
[1644950896417,0.24784444,3118.6,3118.2,1.09826718]
[1644950896617,0.24784444,3118.6,3118.2,2.70160718]
[1644950896618,0.25073119,3118.6,3118.2,2.70160718]
[1644950896817,0.25073119,3118.6,3118.3,1.09826718]
[1644950897017,0.25073119,3118.6,3118.3,1.09737591]
[1644950897417,0.24784444,3118.6,3118.0,1.03471573]
[1644950897620,0.24784444,3118.6,3118.1,3.31227272]
[1644950897819,0.2456909,3118.6,3118.1,3.31227272]
[1644950898619,0.24280411,3118.6,3118.1,4.11396272]
[1644950898864,0.24569081,3118.6,3118.1,4.11396272]
[1644950899266,0.24569081,3118.6,3118.1,0.80169]
[1644950899867,0.24280411,3118.6,3118.1,0.80169]
[1644950900070,0.24569081,3118.6,3117.9,0.463]
[1644950900275,0.24569081,3118.6,3117.8,0.00290953]
[1644950900276,0.3,3118.5,3117.8,0.00290953]
[1644950900668,0.80186,3118.4,3117.8,0.00290953]
[1644950900967,1.9037191,3118.4,3117.8,0.00290953]
[1644950901167,0.6,3118.4,3117.3,0.0046681]
[1644950901367,0.97130411,3117.6,3117.5,0.01163922]
[1644950901567,1.2293,3118.3,3117.9,0.48604975]
[1644950901767,1.09293682,3118.2,3117.9,0.48604975]
[1644950901968,1.89484682,3118.2,3117.9,0.48604975]
[1644950902924,0.80191,3118.1,3117.9,0.48604975]
[1644950907574,1.89483982,3118.2,3117.9,0.48604975]
[1644950907783,1.39293682,3118.2,3117.9,0.48604975]
[1644950908775,0.3,3118.2,3117.9,0.48604975]
[1644950908977,2.43758642,3118.6,3117.9,0.48604975]
[1644950909475,1.4347,3118.6,3117.9,0.48604975]
[1644950909678,1.43758661,3118.6,3118.0,0.84975629]
[1644950909876,1.73758661,3118.6,3118.0,0.84975629]
[1644950910118,1.73758661,3118.6,3118.0,1.65146629]
[1644950910323,1.73758661,3118.6,3118.0,0.84975629]
[1644950910720,1.7347,3118.6,3118.0,0.84975629]
[1644950910919,1.73758666,3118.6,3118.0,0.84975629]
[1644950911319,1.13758666,3118.6,3118.0,0.84975629]
[1644950911525,0.00288666,3118.6,3118.1,0.80169]
[1644950911721,0.00288666,3118.6,3118.2,3.28818055]
[1644950911920,1.00213747,3118.8,3118.2,3.28818055]
[1644950912121,1.00213747,3118.8,3118.2,4.08986055]
[1644950912321,0.0028867,3118.6,3118.2,4.08986055]
[1644950912723,0.0028867,3118.6,3118.2,0.80168]
[1644950913022,1.00213747,3118.8,3118.0,0.84975629]
[1644950913224,1.00213747,3118.8,3118.0,1.65146629]
[1644950913422,0.00288675,3118.6,3118.0,4.92441933]
[1644950913872,0.00288675,3118.6,3118.1,0.80168]
[1644950914273,2.04865,3119.1,3118.2,4.07950465]
[1644950914472,2.04865,3119.1,3118.2,4.88114465]
[1644950914674,0.0028867,3118.6,3118.2,0.80164]
[1644950914974,0.0028867,3118.6,3118.3,3.26212324]
[1644950915172,0.0028867,3118.6,3118.3,3.26671926]
[1644950915373,0.0028867,3118.6,3118.1,3.49329501]
[1644950915574,0.80166,3119.0,3118.2,0.80166]
[1644950915775,0.00288679,3118.6,3118.3,4.18134412]
[1644950915973,0.00288679,3118.6,3118.3,0.80165]
[1644950916175,0.00288679,3118.6,3118.1,3.42184572]
[1644950916777,0.8017039,3118.9,3118.1,3.42184572]
[1644950916977,0.0028867,3118.6,3118.1,4.22353572]
[1644950917176,0.0028867,3118.6,3118.2,1.60339]
[1644950917378,0.0028867,3118.6,3118.2,0.80168]
[1644950918015,0.26418253,3119.0,3118.3,1.0776764]
[1644950918219,0.00288675,3118.6,3118.3,1.0776764]
[1644950918618,0.00288675,3118.6,3118.3,1.8793364]
[1644950918814,0.00288675,3118.6,3118.1,3.42184572]
[1644950918815,0.00288675,3118.6,3118.4,1.0776764]
[1644950919016,0.00288675,3118.6,3118.0,1.65146629]
[1644950919215,0.26418253,3118.7,3118.1,4.33436186]
[1644950919416,0.26706932,3118.6,3118.2,1.07747564]
[1644950919816,1.247,3119.1,3118.5,1.17374171]
[1644950920017,2.8261,3119.4,3118.5,1.17374171]
[1644950920216,3.1261,3119.4,3118.5,1.17374171]
[1644950920416,2.8261,3119.4,3118.6,0.463]
[1644950920815,2.8261,3119.4,3118.7,1.60288]
[1644950921217,2.8261,3119.4,3118.9,0.80144]
[1644950921964,0.00086389,3119.2,3119.0,4.4897612]
[1644950922164,1.1915,3119.6,3119.2,0.0005216]
[1644950922365,1.0,3119.7,3119.2,0.8019316]
[1644950923365,1.6,3119.8,3119.2,0.8019316]
[1644950924166,3.29834034,3119.9,3119.2,0.8019316]
[1644950924566,3.59834034,3119.9,3119.2,0.8019316]
[1644950924766,3.59834034,3119.9,3119.2,1.6033216]
[1644950925426,3.59834034,3119.9,3119.2,0.8019316]
[1644950925626,3.59834034,3119.9,3119.2,0.0005216]
[1644950925831,0.9025162,3119.6,3119.2,0.0005216]
[1644950926529,0.90538644,3119.6,3119.2,0.0005216]
[1644950927536,1.2025162,3119.6,3119.2,0.0005216]
[1644950927730,1.20538644,3119.6,3119.2,0.0005216]
[1644950927929,0.8016,3119.5,3119.2,0.0005216]
[1644950928889,3.80161097,3119.4,3119.2,0.0005216]
[1644950929075,1.98959,3119.3,3119.2,0.0005216]
[1644950929274,6.61132416,3119.3,3119.2,0.0005216]
[1644950929475,7.41306216,3119.3,3119.2,0.0005216]
[1644950929873,7.71306216,3119.3,3119.2,0.0005216]
[1644950933718,7.86585667,3119.3,3119.2,0.0005216]
[1644950935420,4.24412251,3119.3,3119.2,0.0005216]
[1644950935622,7.54419042,3119.3,3119.2,0.0005216]
[1644950936866,7.39139591,3119.3,3119.2,0.0005216]
[1644950937066,4.091328,3119.3,3119.2,0.0005216]
[1644950937266,2.791328,3119.3,3119.2,0.0005216]
[1644950937666,1.1878,3119.3,3119.2,0.0005216]
[1644950937865,4.09436024,3119.4,3119.2,0.0005216]
[1644950937866,0.80446024,3119.4,3119.2,0.0005216]
[1644950938066,0.30287024,3119.4,3119.2,0.0005216]
[1644950938266,0.3,3119.4,3119.2,0.0005216]
[1644950939868,0.26919371,3119.3,3119.2,0.0005216]
[1644950940920,1.2404,3119.7,3119.2,0.0005216]
[1644950940921,0.00287024,3119.4,3119.2,0.0005216]
[1644950941518,0.00287024,3119.4,3119.2,1.06705773]
[1644950941719,0.00287024,3119.4,3119.2,0.0005216]
[1644950941922,0.26919371,3119.6,3119.2,0.0005216]
[1644950942120,0.26919371,3119.6,3119.2,0.8019816]
[1644950942620,0.26919371,3119.6,3119.3,3.28518272]
[1644950942818,0.26919371,3119.6,3119.3,3.34245742]
[1644950943019,0.26919371,3119.5,3119.3,0.8014]
[1644950943319,0.00507153,3120.0,3119.3,0.8014]
[1644950943517,0.00507153,3120.0,3119.7,0.94953502]
[1644950943518,0.27539671,3119.9,3119.7,0.94953502]
[1644950943719,0.27539671,3119.9,3119.7,0.56417918]
[1644950944266,0.27539671,3119.9,3119.4,0.80134]
[1644950944469,0.00395388,3119.8,3119.4,0.80134]
[1644950944666,0.27539671,3119.7,3119.4,0.80135]
[1644950944868,0.00507153,3120.0,3119.4,0.75137]
[1644950945067,0.00395388,3119.7,3119.4,0.75137]
[1644950945269,0.26804255,3119.6,3119.4,0.75137]
[1644950945468,0.00395388,3119.8,3119.4,0.75137]
[1644950945673,1.0442036,3119.9,3119.4,0.75137]
[1644950945674,0.26809388,3119.7,3119.4,0.75137]
[1644950945871,0.00283437,3119.7,3119.4,0.75137]
[1644950946269,0.27093034,3119.7,3119.4,0.75137]
[1644950946874,0.26809597,3119.7,3119.4,0.75137]
[1644950947172,0.27093034,3119.7,3119.4,0.75137]
[1644950947372,19.00877201,3120.7,3119.3,4.6014]
[1644950947373,7.36942748,3120.5,3119.3,4.6014]
[1644950947648,3.31930378,3120.5,3119.4,7.71832]
[1644950947845,3.31930378,3120.5,3119.5,5.77540505]
[1644950948040,3.31930378,3120.5,3119.7,1.0]
[1644950948248,3.31930378,3120.5,3120.2,1.0]
[1644950948439,3.31930378,3120.5,3120.3,0.463]
[1644950948641,3.1176,3121.2,3120.4,0.80107]
[1644950948850,3.1176,3121.2,3120.6,0.80103]
[1644950949043,3.15275774,3121.6,3121.1,1.13821222]
[1644950949044,3.76577439,3121.6,3121.1,1.13821222]
[1644950949642,4.56685439,3121.6,3120.5,0.80108]
[1644950949846,4.56685439,3121.6,3120.3,2.1534]
[1644950949847,1.41625439,3121.6,3120.3,2.1534]
[1644950950044,0.51517439,3121.5,3120.1,2.06516]
[1644950950444,0.70557429,3121.6,3120.1,3.06516]
[1644950950643,0.00282728,3121.0,3120.1,3.06516]
[1644950950844,0.00282728,3121.0,3120.4,0.87679858]
[1644950951673,1.6022998,3121.3,3120.4,0.87679858]
[1644950951868,0.8011498,3121.3,3120.4,0.87679858]
[1644950952068,0.8012,3121.2,3120.4,0.87679858]
[1644950952268,1.6023954,3121.2,3120.4,0.87679858]
[1644950952469,0.8012,3121.2,3120.4,0.87679858]
[1644950952868,0.8012,3121.2,3120.5,3.32089379]
[1644950953069,0.8012,3121.2,3120.4,0.87679858]
[1644950953466,1.1012,3121.2,3120.4,0.87679858]
[1644950953667,1.9023793,3121.2,3120.4,0.87679858]
[1644950954867,0.80121,3121.1,3120.4,0.87679858]
[1644950955519,0.00282022,3120.9,3120.4,0.87679858]
[1644950956119,0.00282022,3120.9,3120.5,3.36460612]
[1644950956319,0.00282022,3120.9,3120.5,3.36847826]
[1644950956518,0.80121,3121.1,3120.5,3.35272277]
[1644950956717,0.80121,3121.1,3120.4,0.87679858]
[1644950956718,0.00282022,3120.9,3120.4,0.87679858]
[1644950957519,0.00282022,3120.9,3119.9,1.60229]
[1644950957724,1.0,3121.0,3119.8,1.0]
[1644950957920,0.00282022,3120.8,3119.9,0.3]
[1644950958220,0.00282022,3120.8,3119.7,1.4826]
[1644950958419,0.00282022,3120.8,3120.4,0.92147214]
[1644950958872,2.37831228,3121.1,3120.4,0.92147214]
[1644950959072,0.00282022,3120.8,3120.4,0.92147214]
[1644950960173,2.0365,3121.1,3120.4,0.92147214]
[1644950960381,0.00282022,3120.8,3120.4,0.92147214]
[1644950961274,2.08339486,3121.1,3120.4,0.92147214]
[1644950961476,2.08339486,3121.1,3119.8,0.80124]
[1644950961477,0.80409022,3120.8,3119.8,0.80124]
[1644950961677,0.80409022,3120.8,3119.7,2.44687]
[1644950961875,0.80409022,3120.8,3119.7,1.26427]
[1644950962076,0.00282022,3120.8,3119.7,4.66131301]
[1644950962276,0.00282022,3120.8,3119.7,5.66131301]
[1644950962477,0.80121,3121.0,3119.7,5.66131301]
[1644950962734,0.00282022,3120.4,3120.2,1.10976566]
[1644950963633,0.00393411,3120.9,3120.2,1.10976566]
[1644950964033,0.00282022,3120.5,3120.2,1.10976566]
[1644950964835,0.00393411,3120.9,3120.2,1.10976566]
[1644950965135,0.00282022,3120.5,3120.2,1.10976566]
[1644950965735,0.00282022,3120.5,3120.2,1.40976566]
[1644950966136,0.00393411,3120.9,3120.2,1.40976566]
[1644950966372,0.00282022,3120.5,3120.2,1.40976566]
[1644950967474,0.26282413,3120.8,3120.7,1.15011507]
[1644950967674,0.26282413,3120.8,3120.7,0.70328468]
[1644950967876,0.00393411,3120.9,3120.7,1.00328468]
[1644950968077,0.25443374,3120.8,3120.7,1.00328468]
[1644950968474,2.108504,3121.4,3120.7,1.00328468]
[1644950968475,0.25443374,3120.9,3120.7,1.00328468]
[1644950968675,0.00675433,3120.9,3120.7,1.00328468]
[1644950968876,0.00282022,3120.9,3120.8,3.27080243]
[1644950969079,0.00282022,3120.9,3120.8,3.40674722]
[1644950969678,0.00393411,3121.3,3120.8,3.40674722]
[1644950969877,0.00393411,3121.5,3121.3,0.98573363]
[1644950970130,0.25430669,3121.4,3120.8,3.40674722]
[1644950970429,0.25430669,3121.4,3120.7,0.3]
[1644950970627,0.00393411,3121.3,3120.7,0.3]
[1644950970827,0.25430669,3121.2,3120.7,0.3]
[1644950971027,0.25430669,3121.2,3120.7,1.10106]
[1644950971225,0.00393411,3121.1,3120.8,3.53326264]
[1644950971426,0.00282022,3121.2,3120.8,3.53326264]
[1644950971629,0.00282022,3121.2,3120.9,1.0719427]
[1644950971925,0.00282022,3121.2,3121.0,3.29086393]
[1644950972126,0.00393411,3121.5,3120.9,1.3719427]
[1644950972326,0.01127917,3121.7,3121.0,3.36132993]
[1644950972527,0.01127917,3121.7,3121.0,4.23202993]
[1644950972933,0.01127917,3121.7,3121.2,0.80078]
[1644950972934,0.25435673,3121.6,3121.2,0.80078]
[1644950973131,0.01127917,3121.7,3121.3,4.07582072]
[1644950973328,3.90798358,3122.4,3121.6,0.80075]
[1644950973528,0.24644534,3122.3,3121.7,3.29016786]
[1644950973868,0.24644534,3122.3,3121.6,0.3]
[1644950974473,0.24644534,3122.3,3122.0,1.09514277]
[1644950974671,0.00085003,3122.1,3122.0,1.09514277]
[1644950975271,0.00085003,3122.1,3121.5,6.48096358]
[1644950975272,0.00085003,3122.1,3121.5,4.88326713]
[1644950975674,0.24644534,3122.3,3121.6,1.6015812]
[1644950975870,0.24644534,3122.3,3121.6,0.8007612]
[1644950975871,0.00281317,3122.0,3121.6,0.8007612]
[1644950976272,0.00281317,3122.0,3121.8,1.19140215]
[1644950976869,0.24644534,3122.3,3121.8,1.19140215]
[1644950977169,0.00281317,3122.1,3121.8,1.19140215]
[1644950978022,0.24644534,3122.3,3121.8,1.19140215]
[1644950978422,0.00281317,3122.1,3121.8,1.19140215]
[1644950979224,0.24644534,3122.3,3121.8,1.19140215]
[1644950979624,0.00281317,3122.1,3121.8,1.19140215]
[1644950980227,0.00281317,3122.1,3121.8,1.99217215]
[1644950980525,0.24644534,3122.3,3121.8,1.99217215]
[1644950980729,0.00281317,3122.1,3121.8,4.4544336]
[1644950980925,0.00281317,3122.1,3121.8,1.19140215]
[1644950981127,0.03353269,3122.0,3121.8,1.19140215]
[1644950981367,0.24644534,3121.9,3121.8,1.19140215]
[1644950986124,0.27156066,3121.9,3121.8,1.19140215]
[1644950987526,0.27156066,3121.9,3121.8,4.48326853]
[1644950987727,0.27156066,3121.9,3121.8,3.75622764]
[1644950988632,0.27156066,3121.9,3121.8,0.46436126]
[1644950989776,0.02511532,3121.9,3121.8,0.46436126]
[1644950989976,0.25858461,3121.9,3121.3,1.0]
[1644950990178,0.25858461,3121.9,3121.1,3.5]
[1644950990179,0.23738373,3121.8,3121.1,1.0]
[1644950990379,0.23738373,3121.8,3121.0,5.2568]
[1644950990380,0.23346929,3121.7,3121.0,5.2568]
[1644950990577,0.00391444,3121.6,3121.0,2.1567]
[1644950990779,0.23346929,3121.5,3121.0,1.1567]
[1644950990980,0.23346929,3121.4,3120.9,3.20365]
[1644950991179,0.23346929,3121.4,3121.3,1.07075237]
[1644950991180,0.00391444,3121.4,3121.3,1.07075237]
[1644950991381,0.23375927,3121.4,3121.3,1.07075237]
[1644950991580,0.00281312,3121.4,3121.3,1.07075237]
[1644950991778,0.23657239,3121.4,3121.3,1.07075237]
[1644950992179,0.00281312,3121.4,3121.3,1.07075237]
[1644950992627,0.23375927,3121.4,3121.3,1.07075237]
[1644950992825,0.00672761,3121.5,3121.3,1.07075237]
[1644950993126,0.23375927,3121.4,3121.3,1.07075237]
[1644950993527,0.00281317,3121.5,3121.3,1.07075237]
[1644950993724,0.00391444,3121.5,3121.3,1.07075237]
[1644950993924,0.23375927,3121.4,3121.3,1.87162237]
[1644950994325,0.00281317,3121.5,3121.3,1.87162237]
[1644950994526,0.00672761,3121.5,3121.3,1.87162237]
[1644950994726,0.23375927,3121.4,3121.3,1.87162237]
[1644950994926,0.23375927,3121.4,3121.3,2.67251237]
[1644950995125,0.00281317,3121.6,3121.3,2.67251237]
[1644950995326,0.00281317,3121.6,3121.3,1.87162237]
[1644950995727,0.23657244,3121.6,3121.3,1.87162237]
[1644950995928,0.23375927,3121.5,3121.3,1.87162237]
[1644950996578,0.23375927,3121.5,3121.3,2.67250237]
[1644950998884,0.23375927,3121.5,3121.3,5.9957992]
[1644950999081,0.23375927,3121.5,3121.4,3.27125037]
[1644950999482,0.23375927,3121.5,3121.3,2.67250237]
[1644950999882,0.23375927,3121.5,3121.3,3.47333927]
[1644951000924,0.23375927,3121.5,3121.3,7.60297092]
[1644951001126,0.23375927,3121.5,3121.3,7.55791059]
[1644951001327,0.23375927,3121.5,3121.4,1.60159]
[1644951001531,0.23375927,3121.5,3121.4,4.90200984]
[1644951002127,0.23375927,3121.5,3121.4,1.60159]
[1644951002327,0.2338817,3121.5,3121.4,6.79985014]
[1644951002528,0.00672761,3121.6,3121.5,0.80075]
[1644951002729,0.00672761,3121.6,3121.5,4.14652922]
[1644951002730,0.00281317,3121.6,3121.5,4.14652922]
[1644951002927,0.00281317,3121.6,3121.5,5.25166529]
[1644951003129,0.00281317,3121.6,3121.5,6.25166529]
[1644951003328,0.23383367,3121.8,3121.6,0.80077]
[1644951003529,0.23383367,3121.8,3121.7,3.38629635]
[1644951003884,0.23383367,3122.0,3121.7,0.80079]
[1644951004084,0.00391444,3122.1,3121.8,1.12556401]
[1644951004281,1.21855098,3122.2,3121.8,1.12556401]
[1644951004282,0.00391444,3121.9,3121.8,1.12556401]
[1644951004485,0.23386277,3121.9,3121.8,1.12556401]
[1644951004681,0.23386277,3121.9,3121.8,1.92635401]
[1644951004882,0.23386277,3122.0,3121.8,1.92635401]
[1644951005184,0.23386277,3121.9,3121.8,1.12556401]
[1644951005785,0.8426797,3122.3,3121.8,1.12556401]
[1644951005983,0.00281317,3122.0,3121.8,1.12556401]
[1644951006382,0.00672761,3122.0,3121.8,1.12556401]
[1644951006585,0.23386277,3121.9,3121.8,1.12556401]
[1644951006982,0.23386277,3121.9,3121.8,4.52786197]
[1644951007182,0.74833419,3122.5,3121.8,1.12556401]
[1644951007183,0.23667594,3122.0,3121.8,1.12556401]
[1644951007383,0.23386277,3121.9,3121.8,1.12556401]
[1644951007638,0.00672761,3122.0,3121.8,0.73727606]
[1644951007838,0.23386277,3121.9,3121.8,0.73727606]
[1644951009337,0.23386277,3121.9,3121.8,1.53806606]
[1644951009539,0.23386277,3121.9,3121.8,4.81658005]
[1644951010140,0.23386277,3121.9,3121.8,4.84667665]
[1644951010739,0.23386277,3121.9,3121.8,5.64742635]
[1644951011242,0.23386277,3121.9,3121.8,1.8534729]
[1644951012084,0.23386277,3121.9,3121.8,0.73727606]
[1644951012290,1.61834855,3122.5,3122.3,1.10727776]
[1644951012485,0.80177545,3122.5,3122.3,1.10727776]
[1644951012886,0.74833419,3122.5,3122.3,1.10727776]
[1644951013289,0.74833419,3122.5,3122.3,2.70850406]
[1644951014787,0.74833419,3122.5,3122.4,1.60107]
[1644951014988,2.9942,3122.8,3122.4,1.65327581]
[1644951015230,2.911,3123.1,3122.6,0.80055]
[1644951015231,3.52312029,3123.1,3122.6,0.80055]
[1644951015632,0.00084791,3122.8,3122.6,0.80055]
[1644951016034,0.00084791,3122.8,3122.3,1.10727776]
[1644951016232,0.00084791,3122.8,3122.5,0.80059]
[1644951016431,0.5629682,3123.1,3122.5,0.80059]
[1644951016737,0.00280613,3122.8,3122.5,0.80059]
[1644951017532,0.00280613,3122.8,3122.3,1.90790776]
[1644951017732,1.80749625,3123.2,3122.3,1.90790776]
[1644951017931,0.99092315,3123.2,3122.3,5.17281078]
[1644951018432,0.94092315,3123.2,3122.4,0.80063]
[1644951018632,0.94092315,3123.2,3122.6,0.80056]
[1644951018885,0.94092315,3123.2,3122.3,1.90790776]
[1644951019090,0.00319784,3123.3,3122.8,0.88807243]
[1644951019687,0.00319784,3123.3,3122.9,0.80047]
[1644951019887,0.00319784,3123.3,3123.0,0.800374]
[1644951020087,0.00319784,3123.3,3122.8,2.15153243]
[1644951020487,0.00599484,3123.3,3122.8,2.15153243]
[1644951021190,0.00599484,3123.3,3122.9,0.80043]
[1644951021389,0.00319784,3123.3,3123.0,3.30720338]
[1644951021590,0.002797,3123.2,3123.0,3.30720338]
[1644951021792,0.002797,3123.2,3122.9,1.60075]
[1644951022628,0.00319784,3123.3,3122.9,1.60075]
[1644951022829,0.002797,3123.2,3123.0,0.80042]
[1644951023831,0.00319784,3123.3,3123.0,0.80042]
[1644951024033,0.00599484,3123.3,3122.8,2.95188243]
[1644951024831,0.00599484,3123.3,3122.8,2.48888243]
[1644951025033,0.00319784,3123.3,3122.9,0.80045]
[1644951025232,0.002797,3123.2,3122.9,0.80045]
[1644951025632,0.002797,3123.2,3122.9,1.6009]
[1644951026234,0.00319784,3123.3,3123.0,0.80043]
[1644951026490,0.002797,3123.2,3123.0,1.60085]
[1644951027287,0.002797,3123.2,3123.0,2.4012326]
[1644951027488,0.00319784,3123.3,3123.1,1.60062]
[1644951027687,0.00599484,3123.3,3123.1,0.14545289]
[1644951028487,0.00319784,3123.3,3123.1,0.14545289]
[1644951032532,0.1892556,3123.3,3123.1,0.14545289]
[1644951032831,0.1892556,3123.3,3123.0,1.0]
[1644951033730,0.1920526,3123.3,3123.0,1.0]
[1644951033988,0.18605776,3123.2,3123.0,1.0]
[1644951034189,0.18995262,3123.2,3123.0,1.0]
[1644951034389,0.18605776,3123.1,3122.9,0.80043]
[1644951035191,0.18605776,3123.1,3122.9,2.4011986]
[1644951036892,0.18605776,3123.1,3122.8,1.35107243]
[1644951037094,0.00389486,3123.0,3122.8,2.15152243]
[1644951037293,0.18605776,3122.9,3122.8,2.15152243]
[1644951037738,0.18605776,3122.9,3122.8,1.68852243]
[1644951038136,0.18605776,3123.2,3122.8,1.68852243]
[1644951038332,0.18605776,3123.1,3122.8,1.68852243]
[1644951038532,0.98930476,3123.0,3122.8,0.88807243]
[1644951038734,0.18605776,3122.9,3122.8,0.88807243]
[1644951039935,0.18605776,3122.9,3122.7,1.60094]
[1644951040935,0.18605776,3122.9,3122.8,1.15022825]
[1644951041988,0.002797,3123.0,3122.8,1.15022825]
[1644951042189,0.002797,3123.0,3122.9,0.80042]
[1644951042190,0.00669186,3123.0,3122.9,0.80042]
[1644951042386,0.18908535,3123.0,3122.8,1.15022825]
[1644951042587,0.98958535,3123.0,3122.8,1.15022825]
[1644951042890,0.18628835,3122.9,3122.8,1.15022825]
[1644951043486,0.18628835,3122.9,3122.8,1.95070825]
[1644951046038,0.18628835,3122.9,3122.8,5.21774511]
[1644951046244,0.18628835,3122.9,3122.8,6.01815511]
[1644951046433,0.002797,3123.0,3122.8,6.01815511]
[1644951046632,0.00389486,3123.0,3122.9,3.47898655]
[1644951046833,0.18908535,3123.0,3122.9,3.47898655]
[1644951047035,0.18908535,3123.0,3122.9,4.47898655]
[1644951047334,0.18908535,3123.0,3122.9,1.0]
[1644951047733,0.18908535,3123.0,3122.9,0.72454579]
[1644951047734,0.18628835,3123.0,3122.9,0.72454579]
[1644951048133,0.18628835,3123.0,3122.8,1.15022825]
[1644951048333,0.00669186,3123.1,3122.9,1.0]
[1644951048533,0.18168279,3123.0,3122.9,1.0]
[1644951048733,0.18168279,3123.0,3122.8,1.15022825]
[1644951048985,0.18168279,3122.9,3122.8,1.15022825]
[1644951049185,0.18168279,3123.0,3122.8,1.15022825]
[1644951049386,0.18168279,3122.9,3122.8,1.95069825]
[1644951049586,0.18168279,3122.9,3122.8,1.15022825]
[1644951050990,0.18168279,3122.9,3122.8,1.95070825]
[1644951051790,0.002797,3123.0,3122.8,1.95070825]